[Event "*** MasterClass Titled Tuesday Blitz"]
[Site "Chess.com"]
[Date "2017.10.03"]
[Round "9"]
[White "Sven_Tica"]
[Black "Tesla37"]
[Result "0-1"]
[WhiteElo "2456"]
[BlackElo "2678"]
[TimeControl "180+2"]
[EndTime "14:59:42 PDT"]
[Termination "Tesla37 won by resignation"]

1. d4 {[%clk 0:03:01.9]} 1... Nf6 {[%clk 0:03:00.1]} 2. c4 {[%clk 0:03:03]} 2...
d6 {[%clk 0:03:01]} 3. Nf3 {[%clk 0:03:00.5]} 3... Nbd7 {[%clk 0:03:01]} 4. Nc3
{[%clk 0:03:01.8]} 4... e5 {[%clk 0:03:00.7]} 5. e4 {[%clk 0:03:01]} 5... c6
{[%clk 0:03:00.7]} 6. Be2 {[%clk 0:03:01.9]} 6... g6 {[%clk 0:03:00.9]} 7. O-O
{[%clk 0:03:03]} 7... Bg7 {[%clk 0:03:02.4]} 8. Re1 {[%clk 0:03:00.2]} 8... O-O
{[%clk 0:03:02.1]} 9. Bf1 {[%clk 0:03:01.6]} 9... h6 {[%clk 0:03:03.2]} 10. h3
{[%clk 0:02:57.2]} 10... Nh7 {[%clk 0:03:03.2]} 11. Be3 {[%clk 0:02:45.4]} 11...
f5 {[%clk 0:02:54.8]} 12. dxe5 {[%clk 0:02:46.2]} 12... dxe5 {[%clk 0:02:49.6]}
13. b3 {[%clk 0:02:19.3]} 13... f4 {[%clk 0:02:49.2]} 14. Bc1 {[%clk 0:02:19.8]}
14... g5 {[%clk 0:02:50.7]} 15. Ba3 {[%clk 0:02:20.5]} 15... Re8 {[%clk
0:02:47.1]} 16. Nh2 {[%clk 0:02:03.9]} 16... Qa5 {[%clk 0:02:44.9]} 17. Bb2
{[%clk 0:02:03.7]} 17... Ndf6 {[%clk 0:02:45.5]} 18. Be2 {[%clk 0:02:03.4]}
18... Be6 {[%clk 0:02:43.3]} 19. Qc2 {[%clk 0:01:54.4]} 19... h5 {[%clk
0:02:42.5]} 20. Rad1 {[%clk 0:01:52.1]} 20... g4 {[%clk 0:02:42.3]} 21. hxg4
{[%clk 0:01:52.8]} 21... hxg4 {[%clk 0:02:42.5]} 22. Rd6 {[%clk 0:01:50.5]}
22... g3 {[%clk 0:02:42.9]} 23. Rd3 {[%clk 0:01:13.2]} 23... gxh2+ {[%clk
0:02:32.2]} 24. Kxh2 {[%clk 0:01:15.1]} 24... Ng5 {[%clk 0:02:33.2]} 25. g3
{[%clk 0:01:09.9]} 25... Kf7 {[%clk 0:02:31.8]} 26. gxf4 {[%clk 0:01:08.7]}
26... Rh8+ {[%clk 0:02:30.9]} 27. Kg1 {[%clk 0:01:09.7]} 27... Nh3+ {[%clk
0:02:31.1]} 28. Kf1 {[%clk 0:01:11.1]} 28... Nxf4 {[%clk 0:02:31.3]} 0-1

[Event "*** MasterClass Titled Tuesday Blitz"]
[Site "Chess.com"]
[Date "2017.10.03"]
[Round "9"]
[White "Keaton87"]
[Black "VladDobrov"]
[Result "0-1"]
[WhiteElo "2470"]
[BlackElo "2617"]
[TimeControl "180+2"]
[EndTime "15:00:47 PDT"]
[Termination "VladDobrov won by resignation"]

1. d4 {[%clk 0:03:01.9]} 1... Nf6 {[%clk 0:03:00.3]} 2. Nf3 {[%clk 0:02:57.1]}
2... e6 {[%clk 0:03:01.2]} 3. e3 {[%clk 0:02:54.6]} 3... c5 {[%clk 0:03:01.1]}
4. Bd3 {[%clk 0:02:48.2]} 4... Nc6 {[%clk 0:02:58.3]} 5. O-O {[%clk 0:02:47.6]}
5... d5 {[%clk 0:02:55.9]} 6. c3 {[%clk 0:02:45.6]} 6... Bd6 {[%clk 0:02:55.1]}
7. Nbd2 {[%clk 0:02:40.6]} 7... b6 {[%clk 0:02:52.4]} 8. b3 {[%clk 0:02:35.7]}
8... Bb7 {[%clk 0:02:53]} 9. Bb2 {[%clk 0:02:30.6]} 9... O-O {[%clk 0:02:54]}
10. Rc1 {[%clk 0:02:17.6]} 10... Re8 {[%clk 0:02:53]} 11. dxc5 {[%clk 0:02:06]}
11... Bxc5 {[%clk 0:02:48.5]} 12. c4 {[%clk 0:02:01.5]} 12... Qe7 {[%clk
0:02:26.3]} 13. Qe2 {[%clk 0:01:56.4]} 13... Ba3 {[%clk 0:02:14.3]} 14. Bxa3
{[%clk 0:01:48.5]} 14... Qxa3 {[%clk 0:02:16.2]} 15. cxd5 {[%clk 0:01:40.3]}
15... Nxd5 {[%clk 0:02:14.8]} 16. Nc4 {[%clk 0:01:37.1]} 16... Qe7 {[%clk
0:02:14.6]} 17. Rfd1 {[%clk 0:01:29.9]} 17... Red8 {[%clk 0:02:14.4]} 18. Bb1
{[%clk 0:01:16.2]} 18... f6 {[%clk 0:02:13.2]} 19. Qb2 {[%clk 0:00:49.5]} 19...
b5 {[%clk 0:02:10.8]} 20. Ncd2 {[%clk 0:00:48.2]} 20... b4 {[%clk 0:02:10.9]}
21. Ne4 {[%clk 0:00:38.4]} 21... Rac8 {[%clk 0:02:11.4]} 22. Nc5 {[%clk
0:00:31.2]} 22... Nc3 {[%clk 0:02:07.6]} 23. Rxd8+ {[%clk 0:00:28.2]} 23... Nxd8
{[%clk 0:02:05.7]} 24. Nxb7 {[%clk 0:00:28.2]} 24... Ne2+ {[%clk 0:01:55.1]} 0-1

[Event "*** MasterClass Titled Tuesday Blitz"]
[Site "Chess.com"]
[Date "2017.10.03"]
[Round "9"]
[White "Sethu0025"]
[Black "kleinebeer98"]
[Result "1-0"]
[WhiteElo "2639"]
[BlackElo "2507"]
[TimeControl "180+2"]
[EndTime "15:01:33 PDT"]
[Termination "Sethu0025 won on time"]

1. e4 {[%clk 0:03:01.9]} 1... e5 {[%clk 0:03:00.6]} 2. Nf3 {[%clk 0:03:02.9]}
2... Nc6 {[%clk 0:03:01.6]} 3. Bc4 {[%clk 0:03:04.2]} 3... Nf6 {[%clk
0:03:02.5]} 4. d3 {[%clk 0:03:06.1]} 4... h6 {[%clk 0:03:03.5]} 5. O-O {[%clk
0:03:06]} 5... d6 {[%clk 0:03:03.7]} 6. Re1 {[%clk 0:03:06.1]} 6... Bg4 {[%clk
0:02:45.3]} 7. c3 {[%clk 0:03:04.2]} 7... Qd7 {[%clk 0:02:40.4]} 8. Nbd2 {[%clk
0:03:05]} 8... O-O-O {[%clk 0:02:36.3]} 9. a4 {[%clk 0:03:04]} 9... d5 {[%clk
0:02:34.3]} 10. exd5 {[%clk 0:03:04.6]} 10... Nxd5 {[%clk 0:02:36.2]} 11. h3
{[%clk 0:02:54.1]} 11... Bh5 {[%clk 0:02:22.3]} 12. Ne4 {[%clk 0:02:51.3]} 12...
f6 {[%clk 0:01:41.4]} 13. a5 {[%clk 0:02:41.9]} 13... Nf4 {[%clk 0:01:35.5]} 14.
Bxf4 {[%clk 0:02:40.2]} 14... exf4 {[%clk 0:01:37.4]} 15. d4 {[%clk 0:02:41]}
15... Kb8 {[%clk 0:01:26.5]} 16. Ned2 {[%clk 0:02:36.5]} 16... g5 {[%clk
0:01:23.9]} 17. Be6 {[%clk 0:02:33.8]} 17... Qg7 {[%clk 0:01:18.5]} 18. Qb3
{[%clk 0:02:33.9]} 18... g4 {[%clk 0:01:16.1]} 19. hxg4 {[%clk 0:02:31.1]} 19...
Bxg4 {[%clk 0:01:18]} 20. Bd5 {[%clk 0:02:20.8]} 20... Bh3 {[%clk 0:00:57.1]}
21. Nh4 {[%clk 0:02:15.4]} 21... Bd7 {[%clk 0:00:42.3]} 22. Re4 {[%clk
0:01:40.3]} 22... f5 {[%clk 0:00:37]} 23. Rxf4 {[%clk 0:01:39.7]} 23... Bd6
{[%clk 0:00:32.9]} 24. Nxf5 {[%clk 0:01:37.9]} 24... Bxf5 {[%clk 0:00:23.1]} 25.
Rxf5 {[%clk 0:01:36.7]} 25... Kc8 {[%clk 0:00:04.7]} 26. a6 {[%clk 0:01:34.5]}
1-0

[Event "*** MasterClass Titled Tuesday Blitz"]
[Site "Chess.com"]
[Date "2017.10.03"]
[Round "9"]
[White "Gabrielian_Artur"]
[Black "AndrewMcStone"]
[Result "0-1"]
[WhiteElo "2526"]
[BlackElo "2091"]
[TimeControl "180+2"]
[EndTime "15:01:52 PDT"]
[Termination "AndrewMcStone won by checkmate"]

1. e4 {[%clk 0:03:01.9]} 1... Nc6 {[%clk 0:02:59]} 2. Nf3 {[%clk 0:03:01.8]}
2... d6 {[%clk 0:03:00.3]} 3. d4 {[%clk 0:03:02]} 3... Nf6 {[%clk 0:03:01.5]} 4.
Nc3 {[%clk 0:03:02.1]} 4... g6 {[%clk 0:03:01.7]} 5. d5 {[%clk 0:03:01]} 5...
Nb8 {[%clk 0:03:00.5]} 6. h3 {[%clk 0:02:59.5]} 6... Bg7 {[%clk 0:03:01.5]} 7.
Be2 {[%clk 0:02:59.2]} 7... O-O {[%clk 0:03:02.7]} 8. O-O {[%clk 0:03:00.3]}
8... e5 {[%clk 0:03:03.8]} 9. dxe6 {[%clk 0:02:58.1]} 9... Bxe6 {[%clk
0:03:01.7]} 10. Bg5 {[%clk 0:02:58.9]} 10... h6 {[%clk 0:02:59.7]} 11. Be3
{[%clk 0:02:59.6]} 11... Re8 {[%clk 0:02:45.7]} 12. Qd2 {[%clk 0:02:58.2]} 12...
Kh7 {[%clk 0:02:46.2]} 13. Bd3 {[%clk 0:02:48.8]} 13... Nc6 {[%clk 0:02:35.8]}
14. Rae1 {[%clk 0:02:43.7]} 14... Ne5 {[%clk 0:02:31.5]} 15. Nd4 {[%clk
0:02:44.3]} 15... Bd7 {[%clk 0:01:51.1]} 16. f4 {[%clk 0:02:33]} 16... Nxd3
{[%clk 0:01:51.5]} 17. cxd3 {[%clk 0:02:33.4]} 17... c6 {[%clk 0:00:41.1]} 18.
f5 {[%clk 0:02:28.6]} 18... g5 {[%clk 0:00:28.3]} 19. Nf3 {[%clk 0:02:27.5]}
19... g4 {[%clk 0:00:12.9]} 20. hxg4 {[%clk 0:02:21]} 20... Nxg4 {[%clk
0:00:14.8]} 21. Bf4 {[%clk 0:02:17.9]} 21... Be5 {[%clk 0:00:13.1]} 22. Bxe5
{[%clk 0:02:16.8]} 22... dxe5 {[%clk 0:00:13.3]} 23. Nh2 {[%clk 0:02:13.6]}
23... Rg8 {[%clk 0:00:12.9]} 24. Nxg4 {[%clk 0:02:14.2]} 24... Rxg4 {[%clk
0:00:14.7]} 25. Nd1 {[%clk 0:02:12]} 25... Qh4 {[%clk 0:00:12]} 26. Qf2 {[%clk
0:02:08.4]} 26... Qg5 {[%clk 0:00:11.3]} 27. Ne3 {[%clk 0:02:04.9]} 27... Rg3
{[%clk 0:00:09]} 28. Re2 {[%clk 0:01:59.3]} 28... f6 {[%clk 0:00:05.6]} 29. Rfe1
{[%clk 0:01:43.2]} 29... Rg8 {[%clk 0:00:06.6]} 30. Nf1 {[%clk 0:01:42.6]} 30...
Rxd3 {[%clk 0:00:05]} 31. Re3 {[%clk 0:01:41.9]} 31... Rxe3 {[%clk 0:00:05.6]}
32. Qxe3 {[%clk 0:01:41.2]} 32... Qxg2# {[%clk 0:00:05.3]} 0-1

[Event "*** MasterClass Titled Tuesday Blitz"]
[Site "Chess.com"]
[Date "2017.10.03"]
[Round "9"]
[White "Kawhi_Leonard2"]
[Black "bilelou"]
[Result "1-0"]
[WhiteElo "2246"]
[BlackElo "2404"]
[TimeControl "180+2"]
[EndTime "15:01:56 PDT"]
[Termination "Kawhi_Leonard2 won by resignation"]

1. e4 {[%clk 0:03:01.6]} 1... c5 {[%clk 0:02:55.5]} 2. Nf3 {[%clk 0:03:01.3]}
2... d6 {[%clk 0:02:44]} 3. d4 {[%clk 0:03:02.6]} 3... cxd4 {[%clk 0:02:45.9]}
4. Nxd4 {[%clk 0:03:03.8]} 4... Nf6 {[%clk 0:02:43.7]} 5. Nc3 {[%clk 0:03:05.3]}
5... a6 {[%clk 0:01:55.4]} 6. h3 {[%clk 0:03:03.7]} 6... e6 {[%clk 0:01:41.8]}
7. g4 {[%clk 0:03:04.2]} 7... h6 {[%clk 0:01:43]} 8. Bg2 {[%clk 0:03:03.8]} 8...
Be7 {[%clk 0:01:44.9]} 9. Be3 {[%clk 0:03:04]} 9... Nc6 {[%clk 0:01:44.6]} 10.
Nxc6 {[%clk 0:02:54.6]} 10... bxc6 {[%clk 0:01:39]} 11. e5 {[%clk 0:02:56.1]}
11... Nd5 {[%clk 0:01:34.1]} 12. exd6 {[%clk 0:02:55.2]} 12... Bxd6 {[%clk
0:01:35.2]} 13. O-O {[%clk 0:02:41.9]} 13... O-O {[%clk 0:01:31.8]} 14. Nxd5
{[%clk 0:02:36.2]} 14... cxd5 {[%clk 0:01:24.3]} 15. c4 {[%clk 0:02:37.1]} 15...
Bb7 {[%clk 0:01:18.5]} 16. cxd5 {[%clk 0:02:27.6]} 16... Bxd5 {[%clk 0:01:17.5]}
17. Bxd5 {[%clk 0:02:27.4]} 17... exd5 {[%clk 0:01:19.4]} 18. Qd4 {[%clk
0:02:16.8]} 18... Rb8 {[%clk 0:01:07.3]} 19. Rfd1 {[%clk 0:02:09.6]} 19... Bc7
{[%clk 0:00:54]} 20. b3 {[%clk 0:02:02.6]} 20... Qd6 {[%clk 0:00:53.2]} 21. Qxd5
{[%clk 0:01:39.8]} 21... Qh2+ {[%clk 0:00:52.6]} 22. Kf1 {[%clk 0:01:41.4]}
22... Qxh3+ {[%clk 0:00:53.2]} 23. Qg2 {[%clk 0:01:43]} 23... Qh4 {[%clk
0:00:54.6]} 24. Rac1 {[%clk 0:01:40.7]} 24... Be5 {[%clk 0:00:51.4]} 25. Rd5
{[%clk 0:01:35.9]} 25... Rfe8 {[%clk 0:00:50.8]} 26. Rc6 {[%clk 0:01:08.2]}
26... Rbc8 {[%clk 0:00:49.9]} 27. Rxe5 {[%clk 0:01:00]} 1-0

[Event "*** MasterClass Titled Tuesday Blitz"]
[Site "Chess.com"]
[Date "2017.10.03"]
[Round "9"]
[White "MatthewG-p4p"]
[Black "Buffy7"]
[Result "1-0"]
[WhiteElo "2587"]
[BlackElo "2469"]
[TimeControl "180+2"]
[EndTime "15:01:57 PDT"]
[Termination "MatthewG-p4p won by resignation"]

1. c4 {[%clk 0:02:59.8]} 1... e5 {[%clk 0:02:53]} 2. Nc3 {[%clk 0:02:59.7]} 2...
Bb4 {[%clk 0:02:51.5]} 3. Nd5 {[%clk 0:02:59.5]} 3... Bc5 {[%clk 0:02:51.6]} 4.
Nf3 {[%clk 0:03:00.1]} 4... e4 {[%clk 0:02:46.9]} 5. Ng1 {[%clk 0:03:01.3]} 5...
c6 {[%clk 0:02:46.9]} 6. Nc3 {[%clk 0:03:00.2]} 6... d5 {[%clk 0:02:47.1]} 7.
cxd5 {[%clk 0:03:01.4]} 7... cxd5 {[%clk 0:02:49]} 8. d3 {[%clk 0:03:02.7]} 8...
Qb6 {[%clk 0:02:36.3]} 9. e3 {[%clk 0:03:02.2]} 9... Nf6 {[%clk 0:02:35.7]} 10.
dxe4 {[%clk 0:03:00.5]} 10... dxe4 {[%clk 0:02:33.3]} 11. Nxe4 {[%clk
0:02:56.4]} 11... Nxe4 {[%clk 0:02:27.3]} 12. Qa4+ {[%clk 0:02:56.7]} 12... Nc6
{[%clk 0:02:28.2]} 13. Qxe4+ {[%clk 0:02:57]} 13... Be6 {[%clk 0:02:29.8]} 14.
a3 {[%clk 0:02:50.7]} 14... O-O-O {[%clk 0:02:20.8]} 15. Nf3 {[%clk 0:02:51.7]}
15... Rhe8 {[%clk 0:02:14.4]} 16. Bc4 {[%clk 0:02:47.6]} 16... Bxc4 {[%clk
0:02:04.1]} 17. Qxc4 {[%clk 0:02:48.4]} 17... Na5 {[%clk 0:02:05.5]} 18. Qg4+
{[%clk 0:02:45.3]} 18... Kb8 {[%clk 0:02:02.9]} 19. b4 {[%clk 0:02:19.5]} 19...
Nb3 {[%clk 0:01:41.5]} 20. O-O {[%clk 0:01:54.6]} 20... Nxa1 {[%clk 0:01:35.8]}
21. bxc5 {[%clk 0:01:55.5]} 21... Qxc5 {[%clk 0:01:17.8]} 22. Bb2 {[%clk
0:01:53.6]} 22... Nb3 {[%clk 0:01:17.8]} 23. Qxg7 {[%clk 0:01:49.5]} 23... Qd5
{[%clk 0:01:12.9]} 24. Qxh7 {[%clk 0:01:47.8]} 24... a5 {[%clk 0:01:06]} 25. h4
{[%clk 0:01:43]} 25... Rg8 {[%clk 0:00:48.1]} 26. e4 {[%clk 0:01:44]} 26... Qe6
{[%clk 0:00:46.2]} 27. Ng5 {[%clk 0:01:42.6]} 27... Qg4 {[%clk 0:00:39.7]} 28.
Qxf7 {[%clk 0:01:11.4]} 28... Qxh4 {[%clk 0:00:39.2]} 29. Qxb3 {[%clk
0:01:11.9]} 29... Qxg5 {[%clk 0:00:37.8]} 30. g3 {[%clk 0:01:11.2]} 30... Rd6
{[%clk 0:00:28.8]} 31. Be5 {[%clk 0:01:09]} 1-0

[Event "*** MasterClass Titled Tuesday Blitz"]
[Site "Chess.com"]
[Date "2017.10.03"]
[Round "9"]
[White "51616516516"]
[Black "peteseeger"]
[Result "0-1"]
[WhiteElo "2057"]
[BlackElo "2155"]
[TimeControl "180+2"]
[EndTime "15:02:34 PDT"]
[Termination "peteseeger won by checkmate"]

1. Nf3 {[%clk 0:03:01.9]} 1... g6 {[%clk 0:03:00.2]} 2. d4 {[%clk 0:03:02.5]}
2... Bg7 {[%clk 0:03:01.2]} 3. c4 {[%clk 0:03:02.6]} 3... d6 {[%clk 0:03:01.3]}
4. g3 {[%clk 0:03:03.8]} 4... e5 {[%clk 0:03:01.2]} 5. Nc3 {[%clk 0:03:02.5]}
5... Nd7 {[%clk 0:03:00.8]} 6. Bg2 {[%clk 0:02:59]} 6... Ne7 {[%clk 0:03:00.9]}
7. O-O {[%clk 0:02:58.9]} 7... O-O {[%clk 0:03:00.7]} 8. e4 {[%clk 0:02:55.4]}
8... exd4 {[%clk 0:03:00.8]} 9. Nxd4 {[%clk 0:02:55.8]} 9... Nc6 {[%clk
0:03:01.6]} 10. Be3 {[%clk 0:02:35.5]} 10... Nde5 {[%clk 0:02:52.9]} 11. Qe2
{[%clk 0:02:02]} 11... Bg4 {[%clk 0:02:44.4]} 12. f3 {[%clk 0:02:00.3]} 12...
Nxd4 {[%clk 0:02:42.8]} 13. Bxd4 {[%clk 0:01:56.6]} 13... Nxf3+ {[%clk
0:02:42.9]} 14. Bxf3 {[%clk 0:01:56.6]} 14... Bxd4+ {[%clk 0:02:43.2]} 15. Kg2
{[%clk 0:01:57.3]} 15... Bxf3+ {[%clk 0:02:38.7]} 16. Qxf3 {[%clk 0:01:58.8]}
16... Bxc3 {[%clk 0:02:33.1]} 17. Qxc3 {[%clk 0:01:56.6]} 17... Qe7 {[%clk
0:02:33.8]} 18. Rae1 {[%clk 0:01:53.9]} 18... Qe5 {[%clk 0:02:30.5]} 19. Qb3
{[%clk 0:01:36.4]} 19... b6 {[%clk 0:02:29.4]} 20. Rf4 {[%clk 0:01:25]} 20...
Rae8 {[%clk 0:02:08.8]} 21. Ref1 {[%clk 0:01:23]} 21... Re7 {[%clk 0:02:09.1]}
22. h4 {[%clk 0:01:16]} 22... Qd4 {[%clk 0:01:54.5]} 23. Qc2 {[%clk 0:01:09.8]}
23... Rfe8 {[%clk 0:01:52.2]} 24. Kh3 {[%clk 0:00:50.4]} 24... h5 {[%clk
0:01:21.5]} 25. Qa4 {[%clk 0:00:40.9]} 25... Rxe4 {[%clk 0:01:10.9]} 26. Rxf7
{[%clk 0:00:39.8]} 26... Re2 {[%clk 0:00:34.7]} 27. Rxc7 {[%clk 0:00:11.4]}
27... Qg4# {[%clk 0:00:32]} 0-1

[Event "*** MasterClass Titled Tuesday Blitz"]
[Site "Chess.com"]
[Date "2017.10.03"]
[Round "9"]
[White "Cruel_Yaro"]
[Black "jefferyx"]
[Result "0-1"]
[WhiteElo "2710"]
[BlackElo "2783"]
[TimeControl "180+2"]
[EndTime "15:02:58 PDT"]
[Termination "jefferyx won by resignation"]

1. a3 {[%clk 0:03:01.9]} 1... g6 {[%clk 0:02:58.6]} 2. e4 {[%clk 0:03:02.1]}
2... c5 {[%clk 0:02:59]} 3. d4 {[%clk 0:02:57.8]} 3... cxd4 {[%clk 0:02:59.3]}
4. Qxd4 {[%clk 0:02:59.1]} 4... Nf6 {[%clk 0:03:00.4]} 5. e5 {[%clk 0:02:51.5]}
5... Nc6 {[%clk 0:03:01.3]} 6. Qc3 {[%clk 0:02:50]} 6... Ne4 {[%clk 0:03:00.1]}
7. Qe3 {[%clk 0:02:30.6]} 7... Qa5+ {[%clk 0:03:00.8]} 8. Nd2 {[%clk 0:02:14.9]}
8... Nxd2 {[%clk 0:02:58.9]} 9. Bxd2 {[%clk 0:02:16.8]} 9... Qxe5 {[%clk
0:03:00.3]} 10. Qxe5 {[%clk 0:02:17.1]} 10... Nxe5 {[%clk 0:03:02.2]} 11. Bc3
{[%clk 0:02:18.4]} 11... f6 {[%clk 0:03:03.8]} 12. f4 {[%clk 0:02:14.3]} 12...
Nc6 {[%clk 0:03:00.9]} 13. Nf3 {[%clk 0:02:15.4]} 13... d6 {[%clk 0:03:01.5]}
14. Bc4 {[%clk 0:02:12.2]} 14... Bf5 {[%clk 0:02:58.3]} 15. O-O-O {[%clk
0:02:09.4]} 15... e5 {[%clk 0:02:45.7]} 16. Kb1 {[%clk 0:01:46.2]} 16... O-O-O
{[%clk 0:02:42.8]} 17. h3 {[%clk 0:01:45.7]} 17... Bh6 {[%clk 0:02:41.4]} 18.
Nh4 {[%clk 0:01:16]} 18... Be4 {[%clk 0:02:42.2]} 19. Be6+ {[%clk 0:01:11.6]}
19... Kc7 {[%clk 0:02:42.1]} 20. Rhe1 {[%clk 0:01:13]} 20... d5 {[%clk
0:02:26.6]} 21. fxe5 {[%clk 0:01:13.2]} 21... fxe5 {[%clk 0:02:28.5]} 22. Nf3
{[%clk 0:01:07.5]} 22... Rhe8 {[%clk 0:02:29.4]} 23. Bg4 {[%clk 0:01:07.8]}
23... Bf4 {[%clk 0:02:30.1]} 24. h4 {[%clk 0:00:48.7]} 24... Bf5 {[%clk
0:02:31.1]} 25. Bxf5 {[%clk 0:00:33.5]} 25... gxf5 {[%clk 0:02:33]} 26. Bd2
{[%clk 0:00:25.2]} 26... Bxd2 {[%clk 0:02:19.7]} 27. Rxd2 {[%clk 0:00:25.5]}
27... d4 {[%clk 0:02:21.2]} 28. Rde2 {[%clk 0:00:23.7]} 28... e4 {[%clk
0:02:21.1]} 29. Ng5 {[%clk 0:00:24.8]} 29... Re7 {[%clk 0:02:02.1]} 30. g4
{[%clk 0:00:20.1]} 30... h6 {[%clk 0:02:00.3]} 31. Nh3 {[%clk 0:00:16.9]} 31...
fxg4 {[%clk 0:02:01.2]} 32. Nf2 {[%clk 0:00:17.2]} 32... e3 {[%clk 0:01:56.2]}
33. Nxg4 {[%clk 0:00:17.9]} 33... Re6 {[%clk 0:01:57.8]} 34. Nh2 {[%clk
0:00:08.6]} 34... Rf8 {[%clk 0:01:54.3]} 35. Rg2 {[%clk 0:00:08.9]} 35... Rf4
{[%clk 0:01:51.5]} 36. h5 {[%clk 0:00:06.9]} 36... Rh4 {[%clk 0:01:51.3]} 37.
Nf3 {[%clk 0:00:07.7]} 37... Rxh5 {[%clk 0:01:51.9]} 38. Rg4 {[%clk 0:00:08.7]}
38... Rd5 {[%clk 0:01:45.6]} 39. Rf4 {[%clk 0:00:09.8]} 39... h5 {[%clk
0:01:38.5]} 40. Kc1 {[%clk 0:00:10.9]} 40... Kb6 {[%clk 0:01:34.8]} 41. Kd1
{[%clk 0:00:11.8]} 41... d3 {[%clk 0:01:34]} 42. cxd3 {[%clk 0:00:12.2]} 42...
Rxd3+ {[%clk 0:01:35.9]} 43. Kc2 {[%clk 0:00:13.4]} 43... Rd5 {[%clk 0:01:35.9]}
44. Kc3 {[%clk 0:00:12.1]} 44... e2 {[%clk 0:01:28.6]} 45. Kc2 {[%clk
0:00:10.6]} 45... Re3 {[%clk 0:01:29.4]} 46. Rf6 {[%clk 0:00:09.1]} 46... Rxf3
{[%clk 0:01:29.3]} 47. Rxf3 {[%clk 0:00:07.5]} 47... Nd4+ {[%clk 0:01:29.7]} 0-1

[Event "*** MasterClass Titled Tuesday Blitz"]
[Site "Chess.com"]
[Date "2017.10.03"]
[Round "9"]
[White "sergiochess83"]
[Black "tigra"]
[Result "1-0"]
[WhiteElo "2735"]
[BlackElo "2653"]
[TimeControl "180+2"]
[EndTime "15:03:18 PDT"]
[Termination "sergiochess83 won by resignation"]

1. e4 {[%clk 0:03:01.9]} 1... c5 {[%clk 0:03:00.7]} 2. Nf3 {[%clk 0:03:02.8]}
2... g6 {[%clk 0:03:01.8]} 3. c3 {[%clk 0:02:51]} 3... Bg7 {[%clk 0:03:02.2]} 4.
d4 {[%clk 0:02:52.1]} 4... cxd4 {[%clk 0:03:03.9]} 5. cxd4 {[%clk 0:02:53.3]}
5... d5 {[%clk 0:03:05.6]} 6. e5 {[%clk 0:02:54]} 6... Bg4 {[%clk 0:03:04]} 7.
Nbd2 {[%clk 0:02:54.6]} 7... Nc6 {[%clk 0:03:04.3]} 8. h3 {[%clk 0:02:53.6]}
8... Bf5 {[%clk 0:03:01.1]} 9. Bb5 {[%clk 0:02:49.7]} 9... Rc8 {[%clk
0:03:01.4]} 10. O-O {[%clk 0:02:49.8]} 10... a6 {[%clk 0:03:02.3]} 11. Bxc6+
{[%clk 0:02:44.3]} 11... Rxc6 {[%clk 0:03:03]} 12. Nb3 {[%clk 0:02:45.9]} 12...
Bc2 {[%clk 0:02:40.5]} 13. Qe2 {[%clk 0:02:44.1]} 13... Bxb3 {[%clk 0:02:39.3]}
14. axb3 {[%clk 0:02:45.1]} 14... Qb6 {[%clk 0:02:40.6]} 15. Be3 {[%clk
0:02:33.9]} 15... e6 {[%clk 0:02:38.8]} 16. Rfc1 {[%clk 0:02:19.3]} 16... Ne7
{[%clk 0:02:39.6]} 17. Bg5 {[%clk 0:02:18]} 17... h6 {[%clk 0:02:40.2]} 18. Bf6
{[%clk 0:02:18.4]} 18... Bxf6 {[%clk 0:02:37.1]} 19. exf6 {[%clk 0:02:19.2]}
19... Rxc1+ {[%clk 0:02:38.8]} 20. Rxc1 {[%clk 0:02:19.2]} 20... Nc6 {[%clk
0:02:40.7]} 21. Ne5 {[%clk 0:02:15]} 21... Qxd4 {[%clk 0:02:36.6]} 22. Nxg6
{[%clk 0:01:28.3]} 22... Rg8 {[%clk 0:02:37.1]} 23. Ne5 {[%clk 0:01:21.8]} 23...
Qf4 {[%clk 0:02:23.1]} 24. Qe3 {[%clk 0:01:11.6]} 24... Qxe3 {[%clk 0:02:02.2]}
25. fxe3 {[%clk 0:01:12.1]} 25... Rg3 {[%clk 0:02:00.5]} 26. Kf2 {[%clk
0:01:04]} 26... Rg5 {[%clk 0:01:59.5]} 27. Nxc6 {[%clk 0:01:03.3]} 27... Rf5+
{[%clk 0:01:59.4]} 28. Ke2 {[%clk 0:01:03.3]} 28... bxc6 {[%clk 0:02:01.1]} 29.
Rxc6 {[%clk 0:01:02.2]} 29... a5 {[%clk 0:01:57]} 30. Rc5 {[%clk 0:00:57.9]}
30... Rxf6 {[%clk 0:01:54]} 31. Rxa5 {[%clk 0:00:59]} 31... h5 {[%clk
0:01:52.5]} 32. b4 {[%clk 0:00:58.7]} 32... Rg6 {[%clk 0:01:52.1]} 33. Kf2
{[%clk 0:00:59.1]} 33... Rf6+ {[%clk 0:01:52.4]} 34. Kg1 {[%clk 0:00:59.8]}
34... Kd7 {[%clk 0:01:51.9]} 35. Rc5 {[%clk 0:00:57.8]} 35... Rg6 {[%clk
0:01:46.5]} 36. b5 {[%clk 0:00:56]} 36... Rg8 {[%clk 0:01:44.6]} 37. Kf2 {[%clk
0:00:35]} 37... h4 {[%clk 0:01:38.4]} 38. Kf3 {[%clk 0:00:25.9]} 38... Rb8
{[%clk 0:01:35]} 39. b4 {[%clk 0:00:25.8]} 39... f6 {[%clk 0:01:30.9]} 40. e4
{[%clk 0:00:17.4]} 40... dxe4+ {[%clk 0:01:26.1]} 41. Kxe4 {[%clk 0:00:19.3]}
41... Kd6 {[%clk 0:01:26.4]} 42. Kd4 {[%clk 0:00:18.5]} 42... Rb6 {[%clk
0:01:05.4]} 43. Rh5 {[%clk 0:00:17]} 43... f5 {[%clk 0:01:05.7]} 44. Kc4 {[%clk
0:00:16.3]} 44... Rb8 {[%clk 0:01:05.3]} 45. Rxh4 {[%clk 0:00:17]} 45... Rh8
{[%clk 0:01:06.4]} 46. Rxh8 {[%clk 0:00:16.5]} 1-0